fUST/lending_fUST_20250523
["ID","MTS","AMOUNT","RATE_DAILY","PERIOD"]
[362038506,1747945835643,-552.84,0.00019332,3]
[362038507,1747945835652,-184.28,0.00019342,3]
[362038508,1747945835661,-583.0,0.00019342,2]
[362038509,1747945835671,-555.72538286,0.00019352,2]
[362038510,1747945835680,-583.0,0.0001937,2]
[362038511,1747945835689,-583.0,0.00019397,2]
[362038512,1747945835699,-368.56,0.00019401,3]
[362038513,1747945835709,-737.12,0.00019411,3]
[362038514,1747945835718,-1474.23,0.00019421,3]
[362038515,1747945835729,-583.0,0.00019425,2]
[362038516,1747945835742,-2948.47,0.00019431,3]
[362038517,1747945835751,-5896.94,0.00019441,3]
[362038518,1747945835761,-314.54559427,0.00019441,3]
[362038519,1747945835770,-500.0,0.00019451,2]
[362038520,1747945835782,-500.0,0.00019451,2]
[362038521,1747945835791,-500.0,0.00019451,2]
[362038522,1747945835800,-339.41292183,0.00019451,2]
[362038523,1747945835811,-500.0,0.00019451,2]
[362038524,1747945835821,-500.0,0.00019451,2]
[362038525,1747945835831,-500.0,0.00019451,2]
[362038526,1747945835840,-500.0,0.00019451,2]
[362038527,1747945835850,-515.43448391,0.00019451,2]
[362038528,1747945835859,-500.0,0.00019451,2]
[362038529,1747945835869,-500.0,0.00019451,2]
[362038530,1747945835878,-500.0,0.00019451,2]
[362038531,1747945835887,-500.0,0.00019451,2]
[362038532,1747945835897,-2205.21335434,0.00019451,3]
[362038533,1747945836023,-23759.50810641,0.00019451,3]
[362038534,1747945836033,-30505.70174126,0.00019452,2]
[362038535,1747945836042,-894.64583333,0.00019452,3]
[362038536,1747945836054,-583.0,0.00019452,2]
[362038537,1747945836063,-430.0,0.00019452,2]
[362038538,1747945836072,-430.0,0.00019452,2]
[362038539,1747945836081,-430.0,0.00019452,2]
[362038540,1747945836091,-430.0,0.00019452,2]
[362038541,1747945836100,-430.0,0.00019452,2]
[362038542,1747945836109,-427.40076255,0.00019452,2]
[362038543,1747945836118,-470.0,0.00019452,2]
[362038544,1747945836128,-430.0,0.00019452,2]
[362038545,1747945836137,-470.0,0.00019452,2]
[362038546,1747945836148,-470.0,0.00019452,2]
[362038547,1747945836157,-430.0,0.00019452,2]
[362038548,1747945836167,-408.15917165,0.00019452,2]
[362038549,1747945836177,-470.0,0.00019452,2]
[362038550,1747945836186,-470.0,0.00019452,2]
[362038551,1747945836195,-470.0,0.00019452,2]
[362038552,1747945836205,-370.0,0.00019452,2]
[362038553,1747945836214,-470.0,0.00019452,2]
[362038554,1747945836223,-470.0,0.00019452,2]
[362038555,1747945836233,-470.0,0.00019452,2]
[362038556,1747945836242,-470.0,0.00019452,2]
[362038557,1747945836252,-430.0,0.00019452,2]
[362038558,1747945836261,-470.0,0.00019452,2]
[362038559,1747945836271,-470.0,0.00019452,2]
[362038560,1747945836281,-470.0,0.00019452,2]
[362038561,1747945836290,-470.0,0.00019452,2]
[362038562,1747945836300,-470.0,0.00019452,2]
[362038563,1747945836310,-430.0,0.00019452,2]
[362038564,1747945836319,-430.0,0.00019452,2]
[362038565,1747945836328,-430.0,0.00019452,2]
[362038566,1747945836338,-470.0,0.00019452,2]
[362038567,1747945836348,-430.0,0.00019452,2]
[362038568,1747945836357,-222.0,0.00019452,2]
[362038569,1747945836367,-430.0,0.00019452,2]
[362038570,1747945836377,-430.0,0.00019452,2]
[362038571,1747945836386,-430.0,0.00019452,2]
[362038572,1747945836396,-536.0,0.00019452,2]
[362038573,1747945836406,-470.0,0.00019452,2]
[362038574,1747945836415,-430.0,0.00019452,2]
[362038575,1747945836425,-430.0,0.00019452,2]
[362038576,1747945836434,-470.0,0.00019452,2]
[362038577,1747945836444,-162.08,0.00019452,2]
[362038578,1747945836453,-470.0,0.00019452,2]
[362038579,1747945836463,-430.0,0.00019452,2]
[362038580,1747945836477,-333.04,0.00019452,2]
[362038581,1747945836486,-470.0,0.00019452,2]
[362038582,1747945836496,-370.0,0.00019452,2]
[362038583,1747945836505,-470.0,0.00019452,2]
[362038584,1747945836515,-470.0,0.00019452,2]
[362038585,1747945836524,-430.0,0.00019452,2]
[362038586,1747945836534,-430.0,0.00019452,2]
[362038587,1747945836543,-470.0,0.00019452,2]
[362038588,1747945836553,-470.0,0.00019452,2]
[362038589,1747945836563,-420.0,0.00019452,2]
[362038590,1747945836572,-430.0,0.00019452,2]
[362038591,1747945836581,-430.0,0.00019452,2]
[362038592,1747945836591,-314.11595402,0.00019452,2]
[362038593,1747945836600,-430.0,0.00019452,2]
[362038594,1747945836609,-481.28,0.00019452,2]
[362038595,1747945836618,-430.0,0.00019452,2]
[362038596,1747945836627,-420.0,0.00019452,2]
[362038597,1747945836637,-430.0,0.00019452,2]
[362038598,1747945836646,-512.72456323,0.00019452,2]
[362038599,1747945836656,-420.0,0.00019452,2]
[362038600,1747945836666,-430.0,0.00019452,2]
[362038601,1747945836675,-470.0,0.00019452,2]
[362038602,1747945836684,-507.4,0.00019452,2]
[362038603,1747945836694,-470.0,0.00019452,2]
[362038604,1747945836703,-430.0,0.00019452,2]
[362038605,1747945836713,-470.0,0.00019452,2]
[362038606,1747945836722,-470.0,0.00019452,2]
[362038607,1747945836733,-430.0,0.00019452,2]
[362038608,1747945836744,-430.0,0.00019452,2]
[362038609,1747945836753,-430.0,0.00019452,2]
[362038610,1747945836762,-430.0,0.00019452,2]
[362038611,1747945836772,-430.0,0.00019452,2]
[362038612,1747945836782,-430.0,0.00019452,2]
[362038613,1747945836791,-525.16457696,0.00019452,2]
[362038614,1747945836800,-430.0,0.00019452,2]
[362038615,1747945836809,-430.0,0.00019452,2]
[362038616,1747945836818,-470.0,0.00019452,2]
[362038617,1747945836828,-430.0,0.00019452,2]
[362038618,1747945836837,-430.0,0.00019452,2]
[362038619,1747945836847,-430.0,0.00019452,2]
[362038620,1747945836855,-470.0,0.00019452,2]
[362038621,1747945836865,-470.0,0.00019452,2]
[362038622,1747945836874,-447.53,0.00019452,2]
[362038623,1747945836883,-430.0,0.00019452,2]
[362038624,1747945836892,-470.0,0.00019452,2]
[362038625,1747945836902,-430.0,0.00019452,2]
[362038626,1747945836911,-470.0,0.00019452,2]
[362038627,1747945836921,-520.34,0.00019452,2]
[362038628,1747945836930,-430.0,0.00019452,2]
[362038629,1747945837094,-430.0,0.00019452,2]
[362038630,1747945837103,-430.0,0.00019452,2]
[362038631,1747945837113,-430.0,0.00019452,2]
[362038632,1747945837123,-470.0,0.00019452,2]
[362038633,1747945837132,-551.14961634,0.00019452,2]
[362038634,1747945837142,-470.0,0.00019452,2]
[362038635,1747945837152,-470.0,0.00019452,2]
[362038636,1747945837161,-470.0,0.00019452,2]
[362038637,1747945837171,-470.0,0.00019452,2]
[362038638,1747945837181,-430.0,0.00019452,2]
[362038639,1747945837190,-430.0,0.00019452,2]
[362038640,1747945837200,-470.0,0.00019452,2]
[362038641,1747945837209,-470.0,0.00019452,2]
[362038642,1747945837218,-470.0,0.00019452,2]
[362038643,1747945837228,-470.0,0.00019452,2]
[362038644,1747945837237,-470.0,0.00019452,2]
[362038645,1747945837247,-430.0,0.00019452,2]
[362038646,1747945837256,-430.0,0.00019452,2]
[362038647,1747945837266,-470.0,0.00019452,2]
[362038648,1747945837276,-470.0,0.00019452,2]
[362038649,1747945837285,-176.71,0.00019452,2]
[362038650,1747945837294,-470.0,0.00019452,2]
[362038651,1747945837304,-470.0,0.00019452,2]
[362038652,1747945837313,-430.0,0.00019452,2]
[362038654,1747945837324,-430.0,0.00019452,2]
[362038655,1747945837333,-430.0,0.00019452,2]
[362038656,1747945837343,-430.0,0.00019452,2]
[362038657,1747945837352,-430.0,0.00019452,2]
[362038658,1747945837362,-430.0,0.00019452,2]
[362038659,1747945837371,-430.0,0.00019452,2]
[362038660,1747945837381,-430.0,0.00019452,2]
[362038661,1747945837391,-470.0,0.00019452,2]
[362038662,1747945837400,-470.0,0.00019452,2]
[362038663,1747945837410,-470.0,0.00019452,2]
[362038664,1747945837421,-430.0,0.00019452,2]
[362038666,1747945837431,-430.0,0.00019452,2]
[362038667,1747945837441,-347.03,0.00019452,2]
[362038668,1747945837450,-470.0,0.00019452,2]
[362038669,1747945837460,-430.0,0.00019452,2]
[362038670,1747945837470,-430.0,0.00019452,2]
[362038671,1747945837479,-470.0,0.00019452,2]
[362038672,1747945837489,-430.0,0.00019452,2]
[362038673,1747945837498,-470.0,0.00019452,2]
[362038674,1747945837508,-470.0,0.00019452,2]
[362038675,1747945837518,-470.0,0.00019452,2]
[362038676,1747945837528,-430.0,0.00019452,2]
[362038678,1747945837537,-430.0,0.00019452,2]
[362038680,1747945837547,-430.0,0.00019452,2]
[362038681,1747945837556,-470.0,0.00019452,2]
[362038682,1747945837566,-430.0,0.00019452,2]
[362038683,1747945837575,-430.0,0.00019452,2]
[362038684,1747945837584,-470.0,0.00019452,2]
[362038686,1747945837594,-430.0,0.00019452,2]
[362038687,1747945837603,-470.0,0.00019452,2]
[362038688,1747945837612,-483.9805157,0.00019452,2]
[362038689,1747945837622,-430.0,0.00019452,2]
[362038690,1747945837631,-430.0,0.00019452,2]
[362038691,1747945837641,-470.0,0.00019452,2]
[362038692,1747945837651,-430.0,0.00019452,2]
[362038693,1747945837660,-384.87,0.00019452,2]
[362038694,1747945837670,-542.98,0.00019452,2]
[362038695,1747945837679,-470.0,0.00019452,2]
[362038696,1747945837689,-416.19521263,0.00019452,2]
[362038697,1747945837698,-552.11,0.00019452,2]
[362038698,1747945837708,-470.0,0.00019452,2]
[362038699,1747945837717,-430.0,0.00019452,2]
[362038700,1747945837728,-470.0,0.00019452,2]
[362038701,1747945837741,-470.0,0.00019452,2]
[362038702,1747945837752,-430.0,0.00019452,2]
[362038703,1747945837762,-430.0,0.00019452,2]
[362038704,1747945837771,-430.0,0.00019452,2]
[362038705,1747945837781,-430.0,0.00019452,2]
[362038706,1747945837790,-430.0,0.00019452,2]
[362038707,1747945837800,-430.0,0.00019452,2]
[362038708,1747945837810,-470.0,0.00019452,2]
[362038709,1747945837819,-430.0,0.00019452,2]
[362038710,1747945837829,-430.0,0.00019452,2]
[362038711,1747945837838,-470.0,0.00019452,2]
[362038712,1747945837848,-430.0,0.00019452,2]
[362038713,1747945837858,-430.0,0.00019452,2]
[362038714,1747945837867,-406.57,0.00019452,2]
[362038715,1747945837876,-228.30711993,0.00019452,2]
[362038716,1747945837885,-557.38,0.00019452,2]
[362038717,1747945837895,-470.0,0.00019452,2]
[362038718,1747945837905,-470.0,0.00019452,2]
[362038719,1747945837914,-151.0,0.00019452,2]
[362038720,1747945837924,-470.0,0.00019452,2]
[362038721,1747945837933,-470.0,0.00019452,2]
[362038722,1747945837943,-430.0,0.00019452,2]
[362038723,1747945837953,-470.0,0.00019452,2]
[362038724,1747945837963,-430.0,0.00019452,2]
[362038725,1747945837972,-430.0,0.00019452,2]
[362038726,1747945837981,-430.0,0.00019452,2]
[362038727,1747945837991,-151.0,0.00019452,2]
[362038728,1747945838000,-151.0,0.00019452,2]
[362038729,1747945838009,-470.0,0.00019452,2]
[362038730,1747945838018,-430.0,0.00019452,2]
[362038731,1747945838027,-430.0,0.00019452,2]
[362038732,1747945838037,-430.0,0.00019452,2]
[362038733,1747945838046,-470.0,0.00019452,2]
[362038734,1747945838055,-474.06,0.00019452,2]
[362038735,1747945838064,-430.0,0.00019452,2]
[362038736,1747945838074,-430.0,0.00019452,2]
[362038737,1747945838083,-470.0,0.00019452,2]
[362038738,1747945838092,-430.0,0.00019452,2]
[362038739,1747945838101,-430.0,0.00019452,2]
[362038740,1747945838110,-430.0,0.00019452,2]
[362038741,1747945838119,-430.0,0.00019452,2]
[362038742,1747945838128,-470.0,0.00019452,2]
[362038743,1747945838137,-470.0,0.00019452,2]
[362038744,1747945838146,-430.0,0.00019452,2]
[362038745,1747945838156,-430.0,0.00019452,2]
[362038746,1747945838165,-470.0,0.00019452,2]
[362038747,1747945838175,-470.0,0.00019452,2]
[362038748,1747945838184,-430.0,0.00019452,2]
[362038749,1747945838193,-470.0,0.00019452,2]
[362038750,1747945838203,-430.0,0.00019452,2]
[362038751,1747945838212,-604.56,0.00019452,2]
[362038752,1747945838221,-430.0,0.00019452,2]
[362038753,1747945838230,-430.0,0.00019452,2]
[362038754,1747945838240,-430.0,0.00019452,2]
[362038755,1747945838248,-430.0,0.00019452,2]
[362038756,1747945838257,-494.28,0.00019452,2]
[362038757,1747945838267,-430.0,0.00019452,2]
[362038758,1747945838276,-470.0,0.00019452,2]
[362038759,1747945838286,-579.88,0.00019452,2]
[362038760,1747945838295,-470.0,0.00019452,2]
[362038761,1747945838305,-430.0,0.00019452,2]
[362038762,1747945838314,-470.0,0.00019452,2]
[362038763,1747945838324,-430.0,0.00019452,2]
[362038764,1747945838333,-470.0,0.00019452,2]
[362038765,1747945838343,-430.0,0.00019452,2]
[362038766,1747945838352,-470.0,0.00019452,2]
[362038767,1747945838362,-470.0,0.00019452,2]
[362038768,1747945838372,-534.0,0.00019452,2]
[362038769,1747945838381,-430.0,0.00019452,2]
[362038770,1747945838391,-214.68876465,0.00019452,2]
[362038771,1747945838401,-511.5,0.00019452,2]
[362038772,1747945838411,-430.0,0.00019452,2]
[362038773,1747945838421,-430.0,0.00019452,2]
[362038774,1747945838431,-430.0,0.00019452,2]
[362038775,1747945838441,-470.0,0.00019452,2]
[362038776,1747945838450,-430.0,0.00019452,2]
[362038777,1747945838461,-430.0,0.00019452,2]
[362038778,1747945838471,-430.0,0.00019452,2]
[362038779,1747945838480,-470.0,0.00019452,2]
[362038780,1747945838489,-430.0,0.00019452,2]
[362038781,1747945838498,-470.0,0.00019452,2]
[362038782,1747945838507,-430.0,0.00019452,2]
[362038783,1747945838517,-189.99,0.00019452,2]
[362038784,1747945838527,-470.0,0.00019452,2]
[362038785,1747945838537,-430.0,0.00019452,2]
[362038786,1747945838548,-583.0,0.00019479,2]
[362038787,1747945838557,-583.0,0.00019507,2]
[362038788,1747945838567,-583.0,0.00019534,2]
[362038789,1747945838577,-583.0,0.00019562,2]
[362038790,1747945838586,-583.0,0.00019589,2]
[362038791,1747945838596,-583.0,0.00019616,2]
[362038792,1747945838605,-583.0,0.00019644,2]
[362038793,1747945838615,-583.0,0.00019671,2]
[362038794,1747945838625,-583.0,0.00019699,2]
[362038795,1747945838635,-500.0,0.00019724,2]
[362038796,1747945838645,-500.0,0.00019725,2]
[362038797,1747945838654,-500.0,0.00019725,2]
[362038798,1747945838663,-583.0,0.00019726,2]
[362038799,1747945838673,-490.0,0.00019726,2]
[362038800,1747945838682,-490.0,0.00019726,2]
[362038801,1747945838691,-490.0,0.00019726,2]
[362038802,1747945838701,-490.0,0.00019726,2]
[362038803,1747945838710,-490.0,0.00019726,2]
[362038804,1747945838719,-490.0,0.00019726,2]
[362038805,1747945838730,-490.0,0.00019726,2]
[362038806,1747945838746,-430.0,0.00019726,2]
[362038807,1747945838755,-490.0,0.00019726,2]
[362038808,1747945838767,-430.0,0.00019726,2]
[362038809,1747945838778,-430.0,0.00019726,2]
[362038810,1747945838791,-430.0,0.00019726,2]
[362038811,1747945838800,-430.0,0.00019726,2]
[362038812,1747945838809,-314.69,0.00019726,2]
[362038813,1747945838825,-490.0,0.00019726,2]
[362038814,1747945838835,-490.0,0.00019726,2]
[362038815,1747945838844,-571.12,0.00019726,2]
[362038816,1747945838853,-255.2,0.00019726,2]
[362038817,1747945838863,-330.0,0.00019726,2]
[362038818,1747945838872,-430.0,0.00019726,2]
[362038819,1747945838882,-430.0,0.00019726,2]
[362038820,1747945838891,-430.0,0.00019726,2]
[362038821,1747945838902,-490.0,0.00019726,2]
[362038822,1747945838911,-490.0,0.00019726,2]
[362038823,1747945838921,-490.0,0.00019726,2]
[362038824,1747945838930,-490.0,0.00019726,2]
[362038825,1747945838939,-490.0,0.00019726,2]
[362038826,1747945838949,-394.79,0.00019726,2]
[362038827,1747945838958,-430.0,0.00019726,2]
[362038828,1747945838966,-161.60626331,0.00019726,2]
[362038829,1747945838975,-490.0,0.00019726,2]
[362038830,1747945838984,-430.0,0.00019726,2]
[362038831,1747945838993,-490.0,0.00019726,2]
[362038832,1747945839003,-490.0,0.00019726,2]
[362038833,1747945839012,-490.0,0.00019726,2]
[362038834,1747945839021,-490.0,0.00019726,2]
[362038835,1747945839030,-490.0,0.00019726,2]
[362038836,1747945839039,-490.0,0.00019726,2]
[362038837,1747945839048,-490.0,0.00019726,2]
[362038838,1747945839058,-501.47067334,0.00019726,2]
[362038839,1747945839067,-490.0,0.00019726,2]
[362038840,1747945839077,-490.0,0.00019726,2]
[362038841,1747945839086,-490.0,0.00019726,2]
[362038842,1747945839095,-430.0,0.00019726,2]
[362038843,1747945839104,-470.0,0.00019726,2]
[362038844,1747945839113,-430.0,0.00019726,2]
[362038845,1747945839123,-151.0,0.00019726,2]
[362038846,1747945839132,-430.0,0.00019726,2]
[362038847,1747945839141,-151.0,0.00019726,2]
[362038848,1747945839151,-490.0,0.00019726,2]
[362038849,1747945839160,-151.0,0.00019726,2]
[362038850,1747945839170,-397.34028706,0.00019726,2]
[362038851,1747945839180,-490.0,0.00019726,2]
[362038852,1747945839189,-461.16,0.00019726,2]
[362038853,1747945839198,-490.0,0.00019726,2]
[362038854,1747945839207,-452.72324985,0.00019726,2]
[362038855,1747945839216,-490.0,0.00019726,2]
[362038856,1747945839226,-490.0,0.00019726,2]
[362038857,1747945839235,-151.0,0.00019726,2]
[362038858,1747945839244,-490.0,0.00019726,2]
[362038859,1747945839254,-430.0,0.00019726,2]
[362038860,1747945839263,-490.0,0.00019726,2]
[362038862,1747945839273,-430.0,0.00019726,2]
[362038864,1747945839282,-430.0,0.00019726,2]
[362038866,1747945839291,-185.408856,0.00019726,2]
[362038868,1747945839301,-185.408856,0.00019726,2]
[362038870,1747945839310,-423.052215,0.00019726,2]
[362038871,1747945839319,-430.0,0.00019726,2]
[362038873,1747945839329,-430.0,0.00019726,2]
[362038874,1747945839338,-576.98,0.00019726,2]
[362038875,1747945839347,-510.0,0.00019726,2]
[362038876,1747945839357,-177.14,0.00019726,2]
[362038877,1747945839366,-490.0,0.00019726,2]
[362038878,1747945839375,-151.0,0.00019726,2]
[362038879,1747945839384,-490.0,0.00019726,2]
[362038880,1747945839394,-430.0,0.00019726,2]
[362038881,1747945839403,-430.0,0.00019726,2]
[362038882,1747945839412,-552.11,0.00019726,2]
[362038883,1747945839422,-430.0,0.00019726,2]
[362038884,1747945839431,-490.0,0.00019726,2]
[362038885,1747945839440,-430.0,0.00019726,2]
[362038886,1747945839449,-490.0,0.00019726,2]
[362038887,1747945839458,-490.0,0.00019726,2]
[362038888,1747945839468,-491.32,0.00019726,2]
[362038889,1747945839478,-267.96,0.00019726,2]
[362038890,1747945839487,-490.0,0.00019726,2]
[362038891,1747945839496,-490.0,0.00019726,2]
[362038892,1747945839506,-490.0,0.00019726,2]
[362038893,1747945839516,-184.64726009,0.00019726,2]
[362038894,1747945839525,-490.0,0.00019726,2]
[362038895,1747945839534,-414.32,0.00019726,2]
[362038898,1747945839543,-490.0,0.00019726,2]
[362038900,1747945839553,-403.16013292,0.00019726,2]
[362038902,1747945839562,-430.0,0.00019726,2]
[362038904,1747945839571,-256.28,0.00019726,2]
[362038906,1747945839581,-490.0,0.00019726,2]
[362038908,1747945839589,-430.0,0.00019726,2]
[362038910,1747945839599,-490.0,0.00019726,2]
[362038912,1747945839607,-430.0,0.00019726,2]
[362038914,1747945839617,-430.0,0.00019726,2]
[362038916,1747945839626,-430.0,0.00019726,2]
[362038918,1747945839636,-430.0,0.00019726,2]
[362038920,1747945839645,-334.62,0.00019726,2]
[362038922,1747945839655,-430.0,0.00019726,2]
[362038924,1747945839665,-430.0,0.00019726,2]
[362038926,1747945839675,-490.0,0.00019726,2]
[362038928,1747945839684,-604.56,0.00019726,2]
[362038930,1747945839693,-490.0,0.00019726,2]
[362038932,1747945839703,-490.0,0.00019726,2]
[362038934,1747945839712,-430.0,0.00019726,2]
[362038936,1747945839721,-490.0,0.00019726,2]
[362038938,1747945839731,-430.0,0.00019726,2]
[362038940,1747945839742,-490.0,0.00019726,2]
[362038942,1747945839751,-291.62,0.00019726,2]
[362038944,1747945839760,-430.0,0.00019726,2]
[362038946,1747945839769,-534.0,0.00019726,2]
[362038948,1747945839778,-272.28529561,0.00019726,2]
[362038950,1747945839787,-430.0,0.00019726,2]
[362038952,1747945839797,-430.0,0.00019726,2]
[362038954,1747945839807,-490.0,0.00019726,2]
[362038956,1747945839818,-430.0,0.00019726,2]
[362038958,1747945839828,-490.0,0.00019726,2]
[362038960,1747945839837,-430.0,0.00019726,2]
[362038962,1747945839846,-490.0,0.00019726,2]
[362038964,1747945839855,-430.0,0.00019726,2]
[362038966,1747945839864,-430.0,0.00019726,2]
[362038968,1747945839874,-583.0,0.00019753,2]
[362038970,1747945839883,-583.0,0.00019781,2]
[362038972,1747945839891,-583.0,0.00019808,2]
[362038974,1747945839901,-583.0,0.00019836,2]
[362038976,1747945839910,-583.0,0.00019863,2]
[362038978,1747945839920,-583.0,0.0001989,2]
[362038980,1747945839929,-583.0,0.00019918,2]
[362038982,1747945839939,-592.0,0.00019945,2]
[362038984,1747945839949,-1148.06839185,0.0001999,2]
[362038986,1747945839958,-500.0,0.00019999,2]
[362038988,1747945839968,-495.78,0.0002,2]
[362038990,1747945839977,-510.0,0.0002,2]
[362038992,1747945839986,-510.0,0.0002,2]
[362038994,1747945839996,-526.31,0.0002,2]
[362038996,1747945840005,-397.06370267,0.0002,2]
[362038998,1747945840015,-515.07,0.0002,2]
[362039001,1747945840025,-510.0,0.0002,2]
[362039003,1747945840035,-493.1,0.0002,2]
[362039005,1747945840044,-129.91305104,0.0002,2]
[362039045,1747945840416,-300.22,0.00019178,2]
[362039046,1747945840427,-183.73694896,0.0002,2]
[362039048,1747945840437,-510.0,0.0002,2]
[362039050,1747945840446,-510.0,0.0002,2]
[362039051,1747945840456,-430.0,0.0002,2]
[362039052,1747945840465,-162.49134895,0.0002,2]
[362039054,1747945840475,-430.0,0.0002,2]
[362039056,1747945840485,-430.0,0.0002,2]
[362039058,1747945840494,-430.0,0.0002,2]
[362039060,1747945840503,-430.0,0.0002,2]
[362039062,1747945840513,-214.94,0.0002,2]
[362039064,1747945840522,-430.0,0.0002,2]
[362039066,1747945840532,-473.72,0.0002,2]
[362039068,1747945840541,-552.11,0.0002,2]
[362039070,1747945840550,-212.24,0.0002,2]
[362039072,1747945840559,-334.86,0.0002,2]
[362039074,1747945840568,-151.0,0.0002,2]
[362039076,1747945840578,-151.0,0.0002,2]
[362039078,1747945840587,-257.624243,0.0002,2]
[362039079,1747945840596,-430.0,0.0002,2]
[362039080,1747945840606,-430.0,0.0002,2]
[362039081,1747945840615,-510.0,0.0002,2]
[362039082,1747945840624,-430.0,0.0002,2]
[362039083,1747945840634,-510.0,0.0002,2]
[362039084,1747945840643,-510.0,0.0002,2]
[362039085,1747945840653,-510.0,0.0002,2]
[362039086,1747945840663,-539.92,0.0002,2]
[362039087,1747945840674,-604.56,0.0002,2]
[362039088,1747945840683,-40.57745909,0.0002,2]
[362039089,1747945840695,-294.78529435,0.0002,2]
[362039090,1747945840851,-470.0,0.00019452,2]
[362039091,1747945840861,-121.21724656,0.0002,2]
[362039092,1747945840870,-430.0,0.0002,2]
[362039093,1747945840879,-430.0,0.0002,2]
[362039094,1747945840889,-534.0,0.0002,2]
[362039095,1747945840899,-430.0,0.0002,2]
[362039096,1747945840909,-430.0,0.0002,2]
[362039097,1747945840920,-525.22,0.0002,2]
[362039098,1747945840929,-532.0,0.0002,2]
[362039099,1747945840939,-430.0,0.0002,2]
[362039100,1747945840948,-191.81989724,0.0002,2]
[362040918,1747946080551,211.534416,0.00013699,2]
[362040984,1747947035697,-5000.0,0.00017873,2]
[362040985,1747947035707,-300.0,0.00018053,2]
[362040986,1747947035718,-300.0,0.00018054,2]
[362040987,1747947035728,-300.0,0.00018054,2]
[362040988,1747947035738,-300.0,0.00018054,2]
[362040989,1747947035748,-1200.0,0.00018054,2]
[362040990,1747947035758,-24900.0,0.00018055,2]
[362040991,1747947035768,-245.523014,0.0001808,2]
[362040992,1747947035779,-187.40922487,0.00018603,2]
[362040993,1747947035790,-162.0,0.00018712,3]
[362040994,1747947035800,-2018.73627442,0.000189,2]
[362040995,1747947035810,-4812.58978798,0.00018996,2]
[362040996,1747947035820,-500.0,0.00019076,2]
[362040997,1747947035830,-495.30060969,0.00019076,2]
[362040998,1747947035840,-500.0,0.00019076,2]
[362040999,1747947035850,-500.0,0.00019076,2]
[362041000,1747947035862,-188.93469548,0.00019076,2]
[362041001,1747947035872,-500.0,0.00019076,2]
[362041002,1747947035881,-500.0,0.00019076,2]
[362041003,1747947035891,-500.0,0.00019076,2]
[362041004,1747947035901,-500.0,0.00019076,2]
[362041005,1747947035910,-500.0,0.00019076,2]
[362041006,1747947035920,-545.54761771,0.00019076,2]
[362041007,1747947035929,-500.0,0.00019076,2]
[362041008,1747947035938,-500.0,0.00019076,2]